Cogmind - Beta 15 @@@ ROGUE MODE // 2025.09.25 @ 19:13:55 Player: beans Result: Destroyed by P-60 Hacker with Shock Rifle Performance ------------- Evolutions (4) 2000 Regions Visited (13) 2600 Robots Destroyed (97) 485 Value Destroyed (2599) 2599 Prototype IDs (18) 360 Alien Tech Used (0) 0 Bonus (252) 252 TOTAL SCORE: 8296 Bonus ------- High Alert Combat Kills 66 Met Data Miner 300 Friendly Fire -114 Cogmind --------- Core Integrity 0/850 Matter 300/300 Energy 98/100 System Corruption 2% Temperature Cool (0) Movement Core (50) Location -6/Factory Parts ------- > --- POWER (1) -------- (None) > --- PROPULSION (6) --- (None) > --- UTILITY (5) ------ (None) > --- WEAPON (3) ------- (None) > --- INVENTORY (5) ---- Light Ion Engine Advanced Matter Compressor (400) Particle Accelerator Advanced Remote Datajack Force Lance Peak State ------------ > --- POWER ------------ Antimatter Reactor > --- PROPULSION ------- Multireflex Exoskeleton Heavy Armored Exoskeleton > --- UTILITY ---------- Experimental Power Amplifier Advanced Cryofiber Web Improved Cooling System Improved Cooling System Improved Hacking Suite > --- WEAPON ----------- Dispersion Rifle Matter Neutralizer Hypervelocity Mass Driver > --- INVENTORY -------- Advanced Matter Compressor Particle Accelerator Cooled Plasma Rifle Advanced Remote Datajack [Rating: 104] Favorites ----------- Power Antimatter Reactor Engine Deuterium Engine Reactor Antimatter Reactor Propulsion Cesium-ion Thruster Treads Light Treads Leg Heavy Armored Exoskeleton Flight Unit Cesium-ion Thruster Utility System Shield Device Improved Cooling System Storage High-capacity Matter Pod Processor Advanced Targeting Computer Hackware System Shield Protection Hardened Medium Armor Plating Weapon Flak Cannon Energy Gun Dispersion Rifle Energy Cannon Matter Neutralizer Ballistic Gun Autogun Ballistic Cannon Flak Cannon Launcher Heavy Rocket Launcher Build | -11 -10 -9 -8 -7 -7 -7 -7 -7 -7 -6 -6 -6 -6 ------- Run | Yrd Mat Mat Mat Fac Was Fac Low Low Dat Pro Fac Was Fac Slots Evolved 8 | . . 2 2 2 . . . . . . 2 . . Power . | . . . . . . . . . . . . . . Propulsion 4 | . . . 2 2 . . . . . . . . . Utility 3 | . . 2 . . . . . . . . 1 . . Weapon 1 | . . . . . . . . . . . 1 . . Parts Attached 65 | 3 2 14 7 9 1 . 1 . . 3 7 16 2 Power 6 | 1 . 3 . 1 . . . . . . . 1 . Engine 5 | 1 . 3 . 1 . . . . . . . . . Core . | . . . . . . . . . . . . . . Reactor 1 | . . . . . . . . . . . . 1 . Propulsion 26 | 2 . 2 4 6 . . . . . 2 5 4 1 Treads 3 | . . 2 . . . . . . . . . 1 . Leg 5 | 2 . . . . . . . . . . . 2 1 Wheel . | . . . . . . . . . . . . . . Hover . | . . . . . . . . . . . . . . Flight 18 | . . . 4 6 . . . . . 2 5 1 . Utility 18 | . 1 5 2 1 . . . . . . 1 8 . Device 8 | . . 1 1 . . . . . . . 1 5 . Storage 2 | . 1 . . . . . . . . . . 1 . Processor 2 | . . 1 1 . . . . . . . . . . Hackware 5 | . . 3 . 1 . . . . . . . 1 . Protection 1 | . . . . . . . . . . . . 1 . Artifact . | . . . . . . . . . . . . . . Weapon 15 | . 1 4 1 1 1 . 1 . . 1 1 3 1 Energy Gun 5 | . . . . 1 1 . 1 . . . . 1 1 Energy Cannon 1 | . . . . . . . . . . . . 1 . Ballistic Gun 4 | . 1 2 . . . . . . . . 1 . . Ballistic Cannon 3 | . . 2 . . . . . . . . . 1 . Launcher 2 | . . . 1 . . . . . . 1 . . . Special Weapon . | . . . . . . . . . . . . . . Impact Weapon . | . . . . . . . . . . . . . . Slashing Weapon . | . . . . . . . . . . . . . . Piercing Weapon . | . . . . . . . . . . . . . . Special Melee Weapon . | . . . . . . . . . . . . . . Unidentified Prototypes 8 | . . 1 1 . 1 . . . . . 1 4 . Parts Lost 41 | . 1 2 3 6 . . . . . 4 12 . 13 Power 4 | . 1 . 1 . . . . . . 1 . . 1 Propulsion 19 | . . 1 2 5 . . . . . 2 7 . 2 Utility 12 | . . 1 . 1 . . . . . 1 4 . 5 Weapon 6 | . . . . . . . . . . . 1 . 5 Highest Loss Streak 6 | . 1 1 2 2 . . . . . 3 6 . 4 To Critical Strikes 1 | . . . . . . . . . . . . . 1 Average Backups 4 | . . 3 3 3 5 5 5 5 5 4 4 4 4 Power . | . . . . . . . . . . . . . . Propulsion . | . . 2 . . . . . . . . . . . Utility 1 | . . . 2 2 1 1 1 1 1 1 1 1 2 Weapon 1 | . . . . 1 3 4 4 4 4 3 3 2 1 Tool/Special . | . . . . . . . . . . . . . . Unused Backups 5 | . . 1 . 1 1 . . . . . . . 2 Power 2 | . . 1 . . . . . . . . . . 1 Propulsion . | . . . . . . . . . . . . . . Utility 2 | . . . . 1 1 . . . . . . . . Weapon . | . . . . . . . . . . . . . . Tool/Special 1 | . . . . . . . . . . . . . 1 Average Slot Usage (%) 64 | . 59 81 87 66 69 69 69 69 69 49 40 54 51 Engine 4 | . 12 10 7 6 7 7 7 7 7 2 . . . Reactor 1 | . . . . . . . . . . . . 4 4 Treads 3 | . . 17 . . . . . . . . . . . Leg 5 | . 28 2 . . . . . . . . . 11 11 Flight 9 | . . . 28 18 23 23 23 23 23 17 21 . . Device 8 | . . . 8 7 7 7 7 7 7 3 2 16 16 Storage 2 | . 5 11 . . . . . . . . . . . Processor 4 | . . 8 8 7 7 7 7 7 7 7 2 . . Hackware 9 | . . 8 18 14 15 15 15 15 15 15 11 2 4 Energy Gun 2 | . . . . 2 7 7 7 7 7 2 . 4 2 Energy Cannon 1 | . . . . . . . . . . . . 5 4 Ballistic Gun 1 | . 12 5 . . . . . . . . 1 . . Ballistic Cannon 6 | . . 15 14 7 . . . . . . . 4 4 Peak Build Rating 104 | 3 5 19 32 33 35 28 32 29 29 29 28 104 104 Average Rating 42 | 1 4 14 28 26 29 28 28 29 29 20 20 82 77 On Entrance 24 | . 3 4 19 24 28 28 28 29 29 29 17 5 104 Naked Turns 57 | . . . . . . . . . . . . 2 55 Heaviest Build 59 | 5 11 24 20 22 18 13 14 14 14 15 5 59 54 Greatest Support 40 | 20 20 40 20 24 15 15 15 15 15 15 20 36 36 Greatest Overweight (x) 17 | . . 1 1 5 1 . . . . 1 . 17 1 Average Overweight (x) . | . . . . . . . . . . . . . . Largest Inventory Capacity 5 | 5 5 5 5 5 5 5 5 5 5 5 5 5 5 Average Capacity 5 | 5 5 5 5 5 5 5 5 5 5 5 5 5 5 Most Carried 5 | 3 1 5 5 5 5 5 5 5 5 5 5 5 5 Average Carried 4 | . . 3 3 3 4 5 5 5 5 4 4 4 4 Final Capacity 5 | 5 5 5 5 5 5 5 5 5 5 5 5 5 5 Final Carried 5 | . . 5 3 5 5 5 5 5 5 5 5 5 5 Class Distribution -------------------- 31% | Mutant 25% | Hacker-Sprinter 20% | Gunner 20% | Hacker-Mutant Dominant Class ---------------- Mutant | -10/Materials Mutant | -9/Materials Hacker-Mutant | -8/Materials Hacker-Mutant | -7/Factory Hacker-Sprinter | -7/Waste Hacker-Sprinter | -7/Factory Hacker-Sprinter | -7/Lower Caves Hacker-Sprinter | -7/Lower Caves Hacker-Sprinter | -7/Data Miner Hacker-Mutant | -6/Proximity Caves Hacker-Sprinter | -6/Factory Gunner | -6/Waste Mutant | -6/Factory Resources | -11 -10 -9 -8 -7 -7 -7 -7 -7 -7 -6 -6 -6 -6 ----------- Run | Yrd Mat Mat Mat Fac Was Fac Low Low Dat Pro Fac Was Fac Matter Collected 3856 | 230 190 1208 346 189 375 . 10 . . 185 100 718 305 Remotely . | . . . . . . . . . . . . . . Salvage Created 3345 | . 102 1383 398 110 518 . . . . 254 109 81 390 Parts 184 | . 5 107 19 12 . . . . . 11 2 2 26 Haulers Intercepted 7 | . . 5 2 . . . . . . . . . . Recyclers Shooed 7 | . . 5 1 . . . . . . . 1 . . Parts Field Recycled . | . . . . . . . . . . . . . . Retrieved Matter . | . . . . . . . . . . . . . . Parts Self-Destructed 3 | . . . . . . . . . . 3 . . . Prevented . | . . . . . . . . . . . . . . Kills | -11 -10 -9 -8 -7 -7 -7 -7 -7 -7 -6 -6 -6 -6 ------- Run | Yrd Mat Mat Mat Fac Was Fac Low Low Dat Pro Fac Was Fac Combat Hostiles Destroyed 67 | . 2 33 7 5 1 . . . . 9 . . 10 Guns 16 | . 2 11 . . 1 . . . . 1 . . 1 Cannons 43 | . . 22 7 5 . . . . . . . . 9 AOE 8 | . . . . . . . . . . 8 . . . Classes Destroyed 17 | . 1 11 1 2 1 . . . . . . . 1 Worker 5 | . . 4 1 . . . . . . . . . . Builder 6 | . . 3 1 . . . . . . . 1 . 1 Tunneler 1 | . . 1 . . . . . . . . . . . Hauler 7 | . . 5 2 . . . . . . . . . . Recycler 5 | . . 2 2 . . . . . . . 1 . . Mechanic 1 | . . . . . . . . . . . . . 1 Operator 1 | . . . . 1 . . . . . . . . . Watcher 4 | . . 4 . . . . . . . . . . . Swarmer 24 | . . 11 . 3 . . . . . 4 . . 6 Grunt 19 | . 2 11 4 . . . . . . 1 . . 1 Brawler 3 | . . 1 . . . . . . . 2 . . . Duelist 2 | . . 1 . . . . . . . 1 . . . Protector 1 | . . 1 . . . . . . . . . . . Sentry 14 | . . 8 2 1 . . . . . . . . 3 Hunter 1 | . . . 1 . . . . . . . . . . Programmer 2 | . . . . 1 . . . . . 1 . . . Compactor 1 | . . . . . 1 . . . . . . . . Best Kill Streak 7 | . 2 6 7 3 1 . . . . 5 2 . 6 Combat Bots Only 6 | . 2 6 5 3 1 . . . . 5 . . 5 Max Kills in Single Turn 3 | . 1 2 1 1 1 . . . . 3 1 . 1 Gunslinging . | . . . . . . . . . . . . . . Exploded 3 | . . . . . . . . . . 3 . . . Melee . | . . . . . . . . . . . . . . Uniques/NPCs Destroyed . | . . . . . . . . . . . . . . Combat | -11 -10 -9 -8 -7 -7 -7 -7 -7 -7 -6 -6 -6 -6 -------- Run | Yrd Mat Mat Mat Fac Was Fac Low Low Dat Pro Fac Was Fac Hostile Shots Fired 554 | . 31 84 39 68 1 3 1 . . 42 85 . 200 Missed 206 | . 8 21 16 29 . 2 1 . . 25 43 . 61 Hits 348 | . 23 63 23 39 1 1 . . . 17 42 . 139 Melee 3 | . . 3 . . . . . . . . . . . Projectile 345 | . 23 60 23 39 1 1 . . . 17 42 . 139 AOE 1 | . . . . . . . . . . . 1 . . Critical Strikes 13 | . 1 2 2 . . . . . . 1 1 . 6 Damage Taken 5388 | . 292 784 364 438 36 18 . . . 321 770 . 2365 Core 1371 | . 63 129 66 140 . . . . . 115 245 . 613 Absorbed by Shields . | . . . . . . . . . . . . . . Ignored by Resistances 21 | . . . . . . . . . . . 21 . . Regen/Repaired (Parts) 452 | . . 209 243 . . . . . . . . . . Core Remaining (%) 78 | 100 74 67 88 . . . . . . 63 . . . Volleys Fired 299 | . 28 92 30 20 39 . 3 . . 14 5 28 40 Largest 3 | . 1 2 2 2 1 . 1 . . 1 1 3 2 Hottest 249 | . 20 74 74 74 63 . 80 . . 80 39 249 193 Shots Fired 475 | . 28 184 60 32 39 . 3 . . 14 5 47 63 Gun 199 | . 28 76 . 8 39 . 3 . . 4 2 18 21 Cannon 263 | . . 108 60 24 . . . . . . . 29 42 Launcher 13 | . . . . . . . . . . 10 3 . . Special . | . . . . . . . . . . . . . . Kinetic 344 | . 28 184 60 24 . . . . . . 2 11 35 Thermal 118 | . . . . 8 39 . 3 . . 4 . 36 28 Explosive 13 | . . . . . . . . . . 10 3 . . Electromagnetic . | . . . . . . . . . . . . . . Robot Hit Streak 15 | . 4 9 11 5 12 . . . . 11 3 6 15 Robot Miss Streak 15 | . 3 15 10 14 1 . . . . 1 1 1 2 Penetration Max 1 | . . . . . . . . . . . . . 1 Secondary Targets 1 | . . 1 . . . . . . . . . . . Max Gunslinging Chain 1 | . . 1 . . . . . . . . . . . Shots Hit Robots 323 | . 17 136 47 26 35 . . . . 8 3 3 48 Core Hits 270 | . 6 127 55 25 5 . . . . 20 8 1 23 Critical Kills 8 | . . . . . . . . . . . . . 8 Critical Parts Destroyed 7 | . . . . . . . . . . . . 1 6 Critical Strikes 19 | . . . . 1 3 . . . . . . 1 14 Burn 4 | . . . . 1 3 . . . . . . . . Destroy 15 | . . . . . . . . . . . . 1 14 Melee Attacks . | . . . . . . . . . . . . . . Impact . | . . . . . . . . . . . . . . Slashing . | . . . . . . . . . . . . . . Piercing . | . . . . . . . . . . . . . . Sneak Attacks . | . . . . . . . . . . . . . . Combat Hostiles . | . . . . . . . . . . . . . . Follow-up Attacks . | . . . . . . . . . . . . . . Damage Inflicted 7643 | . 218 2371 949 459 727 . . . . 1050 621 114 1134 Guns 2364 | . 218 778 . 69 727 . . . . 138 20 . 414 Cannons 3749 | . . 1593 949 390 . . . . . . . 114 703 Explosions 1513 | . . . . . . . . . . 912 601 . . Melee . | . . . . . . . . . . . . . . Ramming 17 | . . . . . . . . . . . . . 17 Kinetic 4540 | . 218 2371 949 390 . . . . . . 20 31 561 Thermal 1573 | . . . . 69 727 . . . . 138 . 83 556 Explosive 1513 | . . . . . . . . . . 912 601 . . Electromagnetic . | . . . . . . . . . . . . . . Impact . | . . . . . . . . . . . . . . Slashing . | . . . . . . . . . . . . . . Piercing . | . . . . . . . . . . . . . . Highest Corruption 2 | . . . . . . . . . . 2 2 2 2 Average Corruption 1 | . . . . . . . . . . 1 1 2 2 Corruption Purged . | . . . . . . . . . . . . . . Corruption Blocked . | . . . . . . . . . . . . . . Effects 34 | . . . . . . . . . . 4 1 21 8 Message Errors 11 | . . . . . . . . . . 2 . 8 1 Matter Fused 6 | . . . . . . . . . . . . 4 2 Heat Flow Errors 4 | . . . . . . . . . . . . . 4 Energy Discharges 4 | . . . . . . . . . . . . 4 . Parts Fused 1 | . . . . . . . . . . 1 . . . Data Loss (minor) 5 | . . . . . . . . . . 1 . 4 . Data Loss (major) 2 | . . . . . . . . . . . 1 . 1 Alerts 1 | . . . . . . . . . . . . 1 . Overload Shots . | . . . . . . . . . . . . . . Overflow Damage 9 | . . . . . . . . . . . . . 9 Projectiles 9 | . . . . . . . . . . . . . 9 Explosions . | . . . . . . . . . . . . . . Melee . | . . . . . . . . . . . . . . Knockbacks 45 | . . 26 7 6 . . . . . . . 1 5 Impact . | . . . . . . . . . . . . . . Kinetic 43 | . . 24 7 6 . . . . . . . 1 5 Secondary 2 | . . 2 . . . . . . . . . . . Self-Inflicted Damage 63 | . . . . . . . . . . 63 . . . Shots 1 | . . . . . . . . . . 1 . . . Rammed . | . . . . . . . . . . . . . . Targets Rammed 15 | . . . . . . . . . . . . . 15 Kicked 15 | . . . . . . . . . . . . . 15 Crushed . | . . . . . . . . . . . . . . Highest Temperature 357 | . 17 357 17 16 . . 11 . . 3 47 33 119 Average Temperature 23 | . 12 24 9 6 . . 5 . . 2 15 7 70 Received Heat Transfer 1131 | . 186 216 171 90 . . . . . 24 213 . 231 Siege Activations 1 | . . . . . . . . . . . . 1 . Total Turns 6 | . . . . . . . . . . . . 6 . Longest Duration 6 | . . . . . . . . . . . . 6 . Martial Activations 3 | . . . . . . . . . . . . 2 1 Total Turns 284 | . . . . . . . . . . . . 245 39 Longest Duration 208 | . . . . . . . . . . . . 208 39 Shielding Activations . | . . . . . . . . . . . . . . Robots Disrupted . | . . . . . . . . . . . . . . Combat Hostiles . | . . . . . . . . . . . . . . Robots Corrupted . | . . . . . . . . . . . . . . Combat Hostiles . | . . . . . . . . . . . . . . Parts Fried . | . . . . . . . . . . . . . . Impact Corruptions . | . . . . . . . . . . . . . . Robots Melted . | . . . . . . . . . . . . . . Combat Hostiles . | . . . . . . . . . . . . . . Parts Melted 3 | . . . . . . . . . . 2 . . 1 Heat Transferred 3373 | . . . . 222 1842 . . . . 250 . 74 985 Parts Sabotaged . | . . . . . . . . . . . . . . Parts Stolen . | . . . . . . . . . . . . . . Parts Stripped . | . . . . . . . . . . . . . . Power Chain Reactions . | . . . . . . . . . . . . . . Alert | -11 -10 -9 -8 -7 -7 -7 -7 -7 -7 -6 -6 -6 -6 ------- Run | Yrd Mat Mat Mat Fac Was Fac Low Low Dat Pro Fac Was Fac Maximum Alert Level 2 | . . 2 1 . . . . . . . 1 . . Low Security (%) 83 | 100 100 38 62 100 100 100 . . . . 86 100 100 Level 1 8 | . . 25 37 . . . . . . . 13 . . Level 2 7 | . . 36 . . . . . . . . . . . Level 3 . | . . . . . . . . . . . . . . Level 4 . | . . . . . . . . . . . . . . Level 5 . | . . . . . . . . . . . . . . High Security . | . . . . . . . . . . . . . . Max Security . | . . . . . . . . . . . . . . Peak Influence 510 | . 30 510 229 105 12 50 . . . . 274 95 161 Initial 202 | . . 8 202 93 12 . . . . . 72 95 . Average 89 | . 1 275 184 40 . 3 . . . . 87 6 57 Influence Increases 2875 | . 50 934 232 321 . 60 120 . . 275 422 18 443 Destroy 0b10 Robot/C 1300 | . 40 640 140 100 . . . . . 180 . . 200 Destroy 0b10 Robot/NC 155 | . . 100 30 5 . . . . . . 10 . 10 Destroy Leader 322 | . 10 168 44 30 . . . . . 20 . . 50 Successful Hack 49 | . . 25 3 21 . . . . . . . . . Disable Machine 60 | . . . . . . . . . . . 60 . . Destroy Structure 74 | . . 1 . . . . . . . . 52 18 3 Partial Spotted 45 | . . . . 30 . 15 . . . . . . . Lose Combat Pursuer 870 | . . . 15 135 . 45 120 . . 75 300 . 180 Influence Decreases 2748 | . 30 475 505 490 37 10 145 25 . 160 263 292 316 Entered New Map 674 | . . 12 277 113 25 . 19 6 . . 43 179 . Time Decay 1689 | . 20 443 198 322 12 10 126 19 . 140 100 113 186 Lost Part 385 | . 10 20 30 55 . . . . . 20 120 . 130 Squads Dispatched 17 | . . 3 . 7 . . . . . 1 3 . 3 Investigation 4 | . . 1 . 2 . . . . . . 1 . . Extermination 3 | . . . . 2 . . . . . . . . 1 Reinforcement 8 | . . 1 . 3 . . . . . . 2 . 2 Assault 2 | . . 1 . . . . . . . 1 . . . Garrison . | . . . . . . . . . . . . . . Intercept . | . . . . . . . . . . . . . . Searches Triggered . | . . . . . . . . . . . . . . Construction Impeded 2 | . . . . . . . . . . . 1 . 1 Haulers Reinforced . | . . . . . . . . . . . . . . Active Scanning Responses . | . . . . . . . . . . . . . . Cargo Convoy Interrupts . | . . . . . . . . . . . . . . Stealth | -11 -10 -9 -8 -7 -7 -7 -7 -7 -7 -6 -6 -6 -6 --------- Run | Yrd Mat Mat Mat Fac Was Fac Low Low Dat Pro Fac Was Fac Distress Signals 3 | . . . 1 . . . . . . . . . 2 Communications Jammed . | . . . . . . . . . . . . . . Distress Signals . | . . . . . . . . . . . . . . Times Spotted 168 | . 3 39 8 24 2 3 8 1 . 15 26 . 39 Peak Tracking Total 12 | . 3 5 5 7 1 3 5 4 . 7 10 . 12 Tactical Retreats 23 | . . . 1 6 1 1 2 . . 3 4 . 5 Traps | -11 -10 -9 -8 -7 -7 -7 -7 -7 -7 -6 -6 -6 -6 ------- Run | Yrd Mat Mat Mat Fac Was Fac Low Low Dat Pro Fac Was Fac Traps Triggered 5 | . . 1 . 2 . . . . . . 2 . . Indirectly . | . . . . . . . . . . . . . . Trap Hack Attempts . | . . . . . . . . . . . . . . Triggered . | . . . . . . . . . . . . . . Disarmed . | . . . . . . . . . . . . . . Reprogrammed . | . . . . . . . . . . . . . . Reused . | . . . . . . . . . . . . . . Traps Extracted . | . . . . . . . . . . . . . . Installed . | . . . . . . . . . . . . . . Triggered . | . . . . . . . . . . . . . . Machines | -11 -10 -9 -8 -7 -7 -7 -7 -7 -7 -6 -6 -6 -6 ---------- Run | Yrd Mat Mat Mat Fac Was Fac Low Low Dat Pro Fac Was Fac Machines Disabled 5 | . . . . . . . . . . 1 4 . . Max in Single Turn 3 | . . . . . . . . . . 1 3 . . Garrison Access 1 | . . . . . . . . . . . . . 1 Machines Repaired . | . . . . . . . . . . . . . . Machines Dismantled . | . . . . . . . . . . . . . . Machines Sabotaged . | . . . . . . . . . . . . . . Overloaded Fab Kills . | . . . . . . . . . . . . . . Hacking | -11 -10 -9 -8 -7 -7 -7 -7 -7 -7 -6 -6 -6 -6 --------- Run | Yrd Mat Mat Mat Fac Was Fac Low Low Dat Pro Fac Was Fac Machines Accessed 21 | . . 4 1 7 . 1 . . 4 . 1 . 3 Terminals 7 | . . 1 . 3 . 1 . . . . 1 . 1 Fabricators 3 | . . . . 2 . . . . . . . . 1 Repair Stations 2 | . . 1 1 . . . . . . . . . . Recycling Units . | . . . . . . . . . . . . . . Scanalyzers 3 | . . 2 . 1 . . . . . . . . . Garrison Access 2 | . . . . 1 . . . . . . . . 1 Total Hacks 80 | . . 15 10 13 . 2 . . 31 . 2 . 7 Successful 59 | . . 10 8 8 . 1 . . 31 . . . 1 Failed 21 | . . 5 2 5 . 1 . . . . 2 . 6 Catastrophic 8 | . . 2 . 2 . 1 . . . . 2 . 1 Database Lockouts . | . . . . . . . . . . . . . . Manual 6 | . . . . 2 . 1 . . . . . . 3 Terminals 13 | . . 3 . 3 . 2 . . . . 2 . 3 Fabricators 8 | . . . . 6 . . . . . . . . 2 Repair Stations 14 | . . 4 10 . . . . . . . . . . Recycling Units . | . . . . . . . . . . . . . . Scanalyzers 10 | . . 8 . 2 . . . . . . . . . Garrison Access 4 | . . . . 2 . . . . . . . . 2 Terminal Hacks 34 | . . . . 2 . 1 . . 31 . . . . Record 12 | . . . . 1 . . . . 11 . . . . Part Schematic 12 | . . . . . . . . . 12 . . . . Robot Schematic 5 | . . . . . . . . . 5 . . . . Prototype ID Bank 3 | . . . . . . . . . 3 . . . . Scanalyzer Index 1 | . . . . . . 1 . . . . . . . Garrison Index 1 | . . . . 1 . . . . . . . . . Fabricator Hacks 4 | . . . . 4 . . . . . . . . . Load Schematic 2 | . . . . 2 . . . . . . . . . Build 2 | . . . . 2 . . . . . . . . . Repair Station Hacks 12 | . . 4 8 . . . . . . . . . . Scan Component 6 | . . 2 4 . . . . . . . . . . Repair 6 | . . 2 4 . . . . . . . . . . Recycling Unit Hacks . | . . . . . . . . . . . . . . Scanalyzer 8 | . . 6 . 2 . . . . . . . . . Insert Component 4 | . . 3 . 1 . . . . . . . . . Analyze 4 | . . 3 . 1 . . . . . . . . . Garrison Access Hacks 1 | . . . . . . . . . . . . . 1 Seal Access 1 | . . . . . . . . . . . . . 1 Unauthorized Hacks . | . . . . . . . . . . . . . . Terminals . | . . . . . . . . . . . . . . Fabricators . | . . . . . . . . . . . . . . Repair Stations . | . . . . . . . . . . . . . . Recycling Units . | . . . . . . . . . . . . . . Scanalyzers . | . . . . . . . . . . . . . . Garrison Access . | . . . . . . . . . . . . . . Data Cores Recovered 1 | . . . . 1 . . . . . . . . . Used . | . . . . . . . . . . . . . . Hacking Detections 13 | . . 3 . 5 . 1 . . . . 1 . 3 Full Trace Events 3 | . . . . 2 . . . . . . 1 . . Feedback Events . | . . . . . . . . . . . . . . Feedback Blocked . | . . . . . . . . . . . . . . Robot Schematics Acquired 5 | . . . . . . . . . 5 . . . . Robots Built . | . . . . . . . . . . . . . . Authchips . | . . . . . . . . . . . . . . Time . | . . . . . . . . . . . . . . Total Robot Build Rating . | . . . . . . . . . . . . . . Part Schematics Acquired 15 | . . 3 . . . . . . 12 . . . . Parts Built 4 | . . . . 4 . . . . . . . . . Authchips . | . . . . . . . . . . . . . . Time 109 | . . . . 109 . . . . . . . . . Total Part Build Rating 12 | . . . . 12 . . . . . . . . . Parts Repaired 6 | . . 2 4 . . . . . . . . . . Time 192 | . . 52 140 . . . . . . . . . . Parts Recycled . | . . . . . . . . . . . . . . Recycled Matter . | . . . . . . . . . . . . . . Retrieved Matter . | . . . . . . . . . . . . . . Retrieved Components . | . . . . . . . . . . . . . . Parts Scanalyzed 4 | . . 3 . 1 . . . . . . . . . Part Schematics Acquired 3 | . . 3 . . . . . . . . . . . Parts Damaged . | . . . . . . . . . . . . . . Bothacking | -11 -10 -9 -8 -7 -7 -7 -7 -7 -7 -6 -6 -6 -6 ------------ Run | Yrd Mat Mat Mat Fac Was Fac Low Low Dat Pro Fac Was Fac Used RIF Installer . | . . . . . . . . . . . . . . Robots Hacked . | . . . . . . . . . . . . . . Non-combat . | . . . . . . . . . . . . . . Combat . | . . . . . . . . . . . . . . Robot Hacks Applied . | . . . . . . . . . . . . . . Relay Couplers Released . | . . . . . . . . . . . . . . Fabnet Peak Effective % . | . . . . . . . . . . . . . . Robots Rewired . | . . . . . . . . . . . . . . Allies Hacked . | . . . . . . . . . . . . . . Hacks Repelled . | . . . . . . . . . . . . . . Allies | -11 -10 -9 -8 -7 -7 -7 -7 -7 -7 -6 -6 -6 -6 -------- Run | Yrd Mat Mat Mat Fac Was Fac Low Low Dat Pro Fac Was Fac Total Allies . | . . . . . . . . . . . . . . Largest Group . | . . . . . . . . . . . . . . Highest-Rated Group . | . . . . . . . . . . . . . . Highest-Rated Ally . | . . . . . . . . . . . . . . Total Orders . | . . . . . . . . . . . . . . Ally Attacks . | . . . . . . . . . . . . . . Total Damage . | . . . . . . . . . . . . . . Kills . | . . . . . . . . . . . . . . Allies Corrupted . | . . . . . . . . . . . . . . Allies Melted . | . . . . . . . . . . . . . . Intel | -11 -10 -9 -8 -7 -7 -7 -7 -7 -7 -6 -6 -6 -6 ------- Run | Yrd Mat Mat Mat Fac Was Fac Low Low Dat Pro Fac Was Fac Active Infowar (turns) . | . . . . . . . . . . . . . . Robot Analysis Total . | . . . . . . . . . . . . . . Derelict Logs Recovered 4 | . . . . . . . 1 2 . 1 . . . Drone Launches . | . . . . . . . . . . . . . . Drone Recoveries . | . . . . . . . . . . . . . . Exploration | -11 -10 -9 -8 -7 -7 -7 -7 -7 -7 -6 -6 -6 -6 ------------- Run | Yrd Mat Mat Mat Fac Was Fac Low Low Dat Pro Fac Was Fac Turns Passed 6465 | 40 293 1236 400 741 399 68 349 71 23 356 210 1656 623 Spaces Moved 6427 | 41 192 552 168 1035 788 224 507 199 80 833 538 920 350 Core 262 | 21 . . . . . . . . . . 5 126 110 Treads 447 | . . 447 . . . . . . . . . . . Legs 1207 | 20 192 105 . . . . . . . . . 650 240 Wheels . | . . . . . . . . . . . . . . Hover . | . . . . . . . . . . . . . . Flight 4511 | . . . 168 1035 788 224 507 199 80 833 533 144 . Fastest Speed 5 | 50 120 120 26 23 29 29 29 29 29 29 5 26 50 Average Speed 74 | 84 120 155 73 56 29 29 29 29 29 37 30 157 139 Slowest Speed 900 | 120 120 240 112 435 109 29 29 29 29 112 50 900 220 Overloaded Moves 203 | . . . . . . . . . . . 44 143 16 Propulsion Burnouts 1 | . . . . . . . . . . . 1 . . Robots Hopped 20 | . . . . 8 6 1 . . . . 5 . . Potential Cave-ins . | . . . . . . . . . . . . . . Cave-ins Triggered . | . . . . . . . . . . . . . . Exploration Rate (%) 44 | 3 47 61 26 28 96 4 50 33 68 79 19 97 12 Regions Visited 13 Branch Regions 4 Pre-discovered Areas 2 | . . . . . . . . 1 1 . . . . Known Exits Taken . | . . . . . . . . . . . . . . Unknown Exits Taken 9 | 1 1 1 1 . . 1 1 1 1 1 . . . Scrap Searched 4 | . . . . . . . 3 1 . . . . . Spaces Dug 44 | . . . . . . . . . . . 42 2 . Terrain Destroyed 166 | . . . . . . . . . . 68 68 27 3 Melee . | . . . . . . . . . . . . . . Projectile 30 | . . . . . . . . . . . . 27 3 AOE 136 | . . . . . . . . . . 68 68 . . Terrain Rammed . | . . . . . . . . . . . . . . Walls Destroyed . | . . . . . . . . . . . . . . Machines Disabled . | . . . . . . . . . . . . . . Actions | -11 -10 -9 -8 -7 -7 -7 -7 -7 -7 -6 -6 -6 -6 --------- Run | Yrd Mat Mat Mat Fac Was Fac Low Low Dat Pro Fac Was Fac Total 7636 | 46 226 763 386 1154 908 225 704 211 79 865 573 1080 416 Wait 740 | . 3 74 165 80 83 3 193 13 . 10 21 89 6 Move 6376 | 40 191 551 167 1019 775 221 506 198 79 832 528 919 350 Hop 20 | . . . . 8 6 1 . . . . 5 . . Pick Up 48 | 3 2 16 8 8 . . . . . . 3 7 1 Fast Attach 41 | . . 9 . 6 2 . 1 . . 2 7 12 2 Attach 39 | 3 2 8 10 7 . . . . . 2 1 5 1 Detach 11 | . . 2 1 3 1 . . . . 3 . 1 . Swap 5 | . . 1 1 . . . . . . 1 . 2 . Drop 34 | . . 10 4 3 2 . 1 . . 1 3 9 1 Fire 299 | . 28 92 30 20 39 . 3 . . 14 5 28 40 Melee . | . . . . . . . . . . . . . . Ram . | . . . . . . . . . . . . . . Kick 15 | . . . . . . . . . . . . . 15 Crush . | . . . . . . . . . . . . . . Escape Stasis . | . . . . . . . . . . . . . . Rewire 8 | . . . . . . . . . . . . 8 . Trap . | . . . . . . . . . . . . . . Miscellaneous . | . . . . . . . . . . . . . . Route ------- -11/Scrapyard -10/Materials (discovered 2 exits: *Mat / [*Min]) -9/Materials (discovered 2 exits: *Mat / [*Min]) -8/Materials -7/Factory -7/Waste -7/Factory (discovered 2 exits: *Fac / [*Low]) -7/Lower Caves -7/Lower Caves -7/Data Miner -6/Proximity Caves -6/Factory -6/Waste -6/Factory History --------- Turn | Location | Event 12 | -11/Scrapyard | Discovered new exit (range 16) 41 | -11/Scrapyard | Entered Materials 168 | -10/Materials | Discovered new exit (range 15) 311 | -10/Materials | Build established: Mutant 323 | -10/Materials | Discovered new exit (range 5) 334 | -10/Materials | Entered another Materials area 334 | -9/Materials | Evolved 2 slots: Utility x2 730 | -9/Materials | Discovered new exit (range 12) 1134 | -9/Materials | First assault squad dispatched 1147 | -9/Materials | Repaired Lgt. Treads 1174 | -9/Materials | Repaired Lgt. Treads 1500 | -9/Materials | Discovered new exit (range 16) 1570 | -9/Materials | Entered another Materials area 1570 | -8/Materials | Evolved 2 slots: Propulsion x2 1687 | -8/Materials | Repaired Cesium-ion Thruster 1727 | -8/Materials | Repaired Flak Cannon 1754 | -8/Materials | Repaired Hcp. Matter Pod 1793 | -8/Materials | Repaired Flak Cannon 1937 | -8/Materials | Discovered new exit (range 16) 1970 | -8/Materials | Entered Factory 1970 | -7/Factory | Evolved 2 slots: Propulsion x2 2085 | -7/Factory | Build established: Hacker-Mutant 2388 | -7/Factory | Fabricated Cesium-ion Thruster? 2512 | -7/Factory | Discovered new exit (range 15) 2528 | -7/Factory | Fabricated Cesium-ion Thruster? 2702 | -7/Factory | Build established: Hacker-Sprinter 2711 | -7/Factory | Sucked down chute 2711 | -7/Factory | Entered Waste 2711 | -7/Waste | The area was eerily silent 2781 | -7/Waste | A Compactor rumbled back to life 2783 | -7/Waste | Spotted C-40 Crusher 2813 | -7/Waste | Destroyed C-40 Crusher 2832 | -7/Waste | Discovered new exit (range 16) 3110 | -7/Waste | Entered Factory 3119 | -7/Factory | Discovered new exit (range 7) 3126 | -7/Factory | Discovered new exit (range 9) 3178 | -7/Factory | Entered Lower Caves 3523 | -7/Lower Caves | Discovered new exit (range 13) 3527 | -7/Lower Caves | Entered another Lower Caves area 3559 | -7/Lower Caves | Learned Factory terminal intel 3560 | -7/Lower Caves | Discovered new exit (range 9) 3565 | -7/Lower Caves | Learned location of Zion (-6) 3598 | -7/Lower Caves | Entered Data Miner 3598 | -7/Data Miner | Discovered new exit (range 6) 3604 | -7/Data Miner | Met Data Miner 3610 | -7/Data Miner | Learned location of Section 7 (-2) 3610 | -7/Data Miner | Acquired the access code to Warlord's prototype stash 3615 | -7/Data Miner | Received God Mode back door access code from Data Miner 3621 | -7/Data Miner | Entered Proximity Caves 3624 | -6/Proximity Caves | Spotted B-75 Beast 3751 | -6/Proximity Caves | Attracted the attention of an 0b10 checkpoint 3805 | -6/Proximity Caves | Attracted the attention of an 0b10 outpost 3816 | -6/Proximity Caves | Lost 3 parts (1p1n1u) 3848 | -6/Proximity Caves | Learned location of 1 exit from Factory 3974 | -6/Proximity Caves | Discovered new exit (range 14) 3977 | -6/Proximity Caves | Entered Factory 3977 | -6/Factory | Evolved 2 slots: Utility x1, Weapon x1 3978 | -6/Factory | Identified exit to Factory 3979 | -6/Factory | Loaded intel: 26 terminal locations 4144 | -6/Factory | Lost 5 parts (3n1u1w) 4187 | -6/Factory | Sucked down chute 4187 | -6/Factory | Entered Waste 4187 | -6/Waste | The area was eerily silent 4215 | -6/Waste | Lost 6 parts (4n2u) 4291 | -6/Waste | Discovered new exit (range 16) 4515 | -6/Waste | Build established: Mutant 4964 | -6/Waste | Build established: Gunner 5843 | -6/Waste | Entered Factory 6358 | -6/Factory | Build established: Mutant 6360 | -6/Factory | Core integrity fell below 50% 6376 | -6/Factory | Lost 4 parts (1p1u2w) 6421 | -6/Factory | Lost 4 parts (2n1u1w) 6427 | -6/Factory | Core integrity fell below 20% 6466 | -6/Factory | Destroyed by P-60 Hacker with Shock Rifle Last Messages --------------- 06392_ Slug penetrates Unfinished Machinery. 06392_ Penetrated by Slug. 06394_ U-05 Engineer works on Pressure Siphon. 06399_ K-01 Serf cleans the Nuclear Reactor. 06405_ Connecting with Fabricator... 06424_ Acquired Flexi-carbon Leg. 06427_ ALERT: Cargo convoy en route, clear transfer corridor. 06429_ Kicked S-27 Virus out of the way. 06430_ Kicked S-27 Virus. 06431_ Kicked S-27 Virus out of the way. 06432_ ALERT: Potential suspicious activity detected, Programmers report to Factory Zone 8O. 06432_ Kicked S-27 Virus. 06445_ Slug penetrates Construction Platform. 06445_ Dropped Flexi-carbon Leg. 06450_ Critical hit (Burn: +37). 06456_ System corrupted: Heat flow error (+137). Map ----- +----------------------------------------------------+ | % """" #????????????????????? | | """ #????????????????????? | | % """ ##############???????? | | % "" # = #???????? | | # %= #???????? | | # %%% #???????? | | # """" """" #???????? | | # """" """"^ #???????? | | # """" """" #???????? | | # """"^"""" #???????? | | # """" """" #???????? | | #^"""" """" #???????? | | # """" """" #???????? | | ############### # #???????? | | ? ??????????????# # ! #???????? | | ?? ???????????????# p ###+######/#######???? | | ???????????????????# m #???? | | ???????????????????# #???? | | ???????????????????# #???? | | ???????????????????+ """ """ """ """ """ +???? | | ?????????????H?????# """ """ """ """ """ #???? | | ???????????????????# """ """ """ """g""" #???? | | ???????????????????# #???? | | ???????????????????# #???? | | ???????????????????# #???? | | ???????????????????+ @ #???? | | ???????????????????####+#######"" ""## #???? | | ??????????????????????????????#""F""## #???? | | ??????????????????????????????# """ ## #???? | | ??????????????????????????????######## #???? | | ?????????????????????????????????????# #???? | | ?????????????????????????????????????# #???? | | ?????????????????????????????????????# #???? | | ?????????????????????????????????????# #???? | | ?????????????????????????????????????# #???? | | ?????????????????????????????????????# #???? | | ?????????????????????????????????????# +???? | | ?????????????????????????????????????+ #???? | | ?????????????????????????????????????# #???? | | ?????????????????????????????????????# #???? | | ?????????????????????????????????????? #???? | | ???????????????????????????????????????? ????? | | ?????????????????????????????????????????????????? | | ?????????????????????????????????????????????????? | | ?????????????????????????????????????????????????? | | ?????????????????????????????????????????????????? | | ?????????????????????????????????????????????????? | | ?????????????????????????????????????????????????? | | ?????????????????????????????????????????????????? | | ?????????????????????????????????????????????????? | +----------------------------------------------------+ Best States ------------- Heat Dissipation 91 Energy Generation 27 Energy Capacity 325 Matter Stores 500 Matter Capacity 500 Sight Range 16 Terrain Scan Density 10 Power Amplification 40 Base Temperature (-) 200 Armor Coverage 225 Resistance: TH 20 Evasion (%) 65 Targeting Accuracy 8 Recoil Reduction 2 Particle Charging 30 Offensive Hacking 12 Defensive Hacking 20 Item Schematics ----------------- Cesium-ion Thruster | -9/Materials | Scanalyzed System Shield | -9/Materials | Scanalyzed Flak Cannon | -9/Materials | Scanalyzed Combat Drone Bay | -7/Data Miner | Free Lgt. Regenerative Plating | -7/Data Miner | Free Cld. Cesium-ion Thruster | -7/Data Miner | Free Exp. Targeting Computer | -7/Data Miner | Free Imp. Lightning Gun | -7/Data Miner | Free Antigrav System | -7/Data Miner | Free Imp. Recalibrator | -7/Data Miner | Free Adv. Plasma Cannon | -7/Data Miner | Free Coil Gun | -7/Data Miner | Free Smartbomb Launcher | -7/Data Miner | Free Adv. Cooling System | -7/Data Miner | Free Antimatter Reactor | -7/Data Miner | Free Robot Schematics ------------------ A-15 Conveyor | -7/Data Miner | Free M-22 Extractor | -7/Data Miner | Free S-27 Virus | -7/Data Miner | Free Y-54 Guardian | -7/Data Miner | Free B-60 Warrior | -7/Data Miner | Free Fabricated ------------ Cesium-ion Thruster | x2 | -7/Factory Cesium-ion Thruster | x2 | -7/Factory Repaired ---------- Lgt. Treads | 19% | -9/Materials Lgt. Treads | 31% | -9/Materials Cesium-ion Thruster | 28% | -8/Materials Flak Cannon | 22% | -8/Materials Hcp. Matter Pod | 31% | -8/Materials Flak Cannon | 48% | -8/Materials Alien Tech Used ----------------- None Achievements -------------- Supersonic Challenges ------------ None Game ------ Seed BladeMakeshiftShell Manual? 0 Play Time 00:58:36 Cumulative 159.6 hours Start 2025.09.24 @ 20:34:22 End 2025.09.25 @ 19:13:55 Sessions 3 Manual Loads 0 Difficulty Rogue Special Mode None Game No. 516 Rogue 515 Adventurer 1 Explorer 0 Win Type - Total 0 Types 0/0/0/0/0/0/0/0/0/0 Lore% 56 Gallery% 54 Achievement% 43 Wizard Run 0 Options --------- Layout 1 ASCII 0 Keyboard 0 Movement Mouse Keybinds 0 Fullscreen 2 Font 24/Smallcaps Map View 50x35 Zoom Use 0% Tactical HUD 1 Map Filters NONE Filters NONE Steam 1 RUN: ab06e60d-89e0-49c3-bcca-3676f0b70a14